[Event "Late-Titled-Tuesday-Blitz-May-28-2024"]
[Site "Chess.com"]
[Date "2024.05.28"]
[Round "4"]
[White "lachesisQ"]
[Black "rhungaski"]
[Result "1-0"]
[WhiteElo "3057"]
[BlackElo "2604"]
[TimeControl "180+1"]
[EndTime "14:40:04 PDT"]
[Termination "lachesisQ won on time"]

1. e4 {[%clk 0:03:00.9]} 1... e6 {[%clk 0:02:58.7]} 2. d4 {[%clk 0:03:00.6]}
2... d5 {[%clk 0:02:58.8]} 3. Nc3 {[%clk 0:03:01.5]} 3... Bb4 {[%clk 0:02:57]}
4. e5 {[%clk 0:03:00.7]} 4... c5 {[%clk 0:02:57.3]} 5. a3 {[%clk 0:03:00.9]}
5... Bxc3+ {[%clk 0:02:57]} 6. bxc3 {[%clk 0:03:01.8]} 6... Nc6 {[%clk
0:02:57.6]} 7. a4 {[%clk 0:02:57.6]} 7... Qa5 {[%clk 0:02:55.3]} 8. Bd2 {[%clk
0:02:57.5]} 8... c4 {[%clk 0:02:55.7]} 9. h4 {[%clk 0:02:52.2]} 9... Bd7 {[%clk
0:02:48.8]} 10. h5 {[%clk 0:02:50.1]} 10... h6 {[%clk 0:02:36.8]} 11. Qg4 {[%clk
0:02:49.6]} 11... Rh7 {[%clk 0:02:37.4]} 12. Nh3 {[%clk 0:02:42]} 12... O-O-O
{[%clk 0:02:35.8]} 13. Nf4 {[%clk 0:02:40.3]} 13... Nge7 {[%clk 0:02:34.7]} 14.
Qd1 {[%clk 0:02:39]} 14... Kb8 {[%clk 0:02:33.7]} 15. Be2 {[%clk 0:02:38.9]}
15... Rf8 {[%clk 0:02:32.9]} 16. Bg4 {[%clk 0:02:37.4]} 16... Ka8 {[%clk
0:02:31.1]} 17. O-O {[%clk 0:02:35.9]} 17... Bc8 {[%clk 0:02:13.7]} 18. Re1
{[%clk 0:02:35.4]} 18... Rhh8 {[%clk 0:02:04.7]} 19. Re3 {[%clk 0:02:33.8]}
19... Rhg8 {[%clk 0:02:00.9]} 20. Bc1 {[%clk 0:02:34.2]} 20... Qc7 {[%clk
0:01:42.3]} 21. Ba3 {[%clk 0:02:33.6]} 21... f5 {[%clk 0:01:33.1]} 22. Bh3
{[%clk 0:02:01]} 22... Qd8 {[%clk 0:01:24.3]} 23. Rg3 {[%clk 0:02:00.5]} 23...
Qe8 {[%clk 0:01:19.9]} 24. Qc1 {[%clk 0:01:41.4]} 24... Qf7 {[%clk 0:01:19.1]}
25. a5 {[%clk 0:01:36.2]} 25... a6 {[%clk 0:01:11.4]} 26. Bc5 {[%clk 0:01:33.1]}
26... Re8 {[%clk 0:01:11.1]} 27. Qb2 {[%clk 0:01:33.3]} 27... g5 {[%clk
0:01:10.2]} 28. hxg6 {[%clk 0:01:29.2]} 28... Nxg6 {[%clk 0:01:10.5]} 29. Nxg6
{[%clk 0:01:03.1]} 29... Rxg6 {[%clk 0:01:11.4]} 30. Rxg6 {[%clk 0:01:03.6]}
30... Qxg6 {[%clk 0:01:12]} 31. Qb6 {[%clk 0:01:03.8]} 31... Qg5 {[%clk
0:01:04.9]} 32. Rb1 {[%clk 0:00:57]} 32... Qd8 {[%clk 0:01:02.8]} 33. Qb2 {[%clk
0:00:53.1]} 33... Rg8 {[%clk 0:00:53.7]} 34. Qc1 {[%clk 0:00:47.6]} 34... Qg5
{[%clk 0:00:48.4]} 35. Qe1 {[%clk 0:00:43.5]} 35... Nxa5 {[%clk 0:00:41.6]} 36.
Rb6 {[%clk 0:00:41.2]} 36... Nc6 {[%clk 0:00:40.7]} 37. Qb1 {[%clk 0:00:39.3]}
37... Qd8 {[%clk 0:00:36.4]} 38. Qa2 {[%clk 0:00:35.6]} 38... Qd7 {[%clk
0:00:34.9]} 39. Kh2 {[%clk 0:00:31.7]} 39... Rg5 {[%clk 0:00:34.2]} 40. Qa1
{[%clk 0:00:24.3]} 40... Rg8 {[%clk 0:00:34.3]} 41. Qc1 {[%clk 0:00:23.2]} 41...
Rg5 {[%clk 0:00:33.7]} 42. Bd6 {[%clk 0:00:20.3]} 42... Qd8 {[%clk 0:00:31.2]}
43. Qb2 {[%clk 0:00:19.8]} 43... Qd7 {[%clk 0:00:30.2]} 44. Qb1 {[%clk
0:00:19.9]} 44... Rg8 {[%clk 0:00:27.3]} 45. Qa1 {[%clk 0:00:19.8]} 45... Rg5
{[%clk 0:00:24]} 46. Qc1 {[%clk 0:00:20]} 46... Qd8 {[%clk 0:00:22.7]} 47. Rb1
{[%clk 0:00:19.8]} 47... Qd7 {[%clk 0:00:21.3]} 48. Qa3 {[%clk 0:00:19.8]} 48...
Rg8 {[%clk 0:00:20.2]} 49. Qc5 {[%clk 0:00:19.9]} 49... Rg5 {[%clk 0:00:18.3]}
50. Qb6 {[%clk 0:00:18.6]} 50... Rg8 {[%clk 0:00:18.2]} 51. Ra1 {[%clk
0:00:18.5]} 51... Rg7 {[%clk 0:00:14.8]} 52. Kg1 {[%clk 0:00:18.2]} 52... Qd8
{[%clk 0:00:11.4]} 53. Qb2 {[%clk 0:00:18.1]} 53... Qd7 {[%clk 0:00:11.2]} 54.
Kf1 {[%clk 0:00:18.1]} 54... Rg5 {[%clk 0:00:11.6]} 55. Ke1 {[%clk 0:00:17.8]}
55... Rg7 {[%clk 0:00:12]} 56. Kd1 {[%clk 0:00:17.4]} 56... Rg5 {[%clk
0:00:12.7]} 57. Kc1 {[%clk 0:00:17.7]} 57... Rg7 {[%clk 0:00:13.3]} 58. Qa3
{[%clk 0:00:18.2]} 58... Rg8 {[%clk 0:00:12.5]} 59. Kb2 {[%clk 0:00:18.6]} 59...
Qd8 {[%clk 0:00:13]} 60. Qc5 {[%clk 0:00:18.1]} 60... Rg5 {[%clk 0:00:11.6]} 61.
g3 {[%clk 0:00:18.3]} 61... Qd7 {[%clk 0:00:11.7]} 62. Bf1 {[%clk 0:00:18.1]}
62... Rh5 {[%clk 0:00:11.9]} 63. Be2 {[%clk 0:00:17.6]} 63... Rh2 {[%clk
0:00:12.6]} 64. Rf1 {[%clk 0:00:17.3]} 64... f4 {[%clk 0:00:12.5]} 65. gxf4
{[%clk 0:00:17.3]} 65... Qd8 {[%clk 0:00:13.1]} 66. f5 {[%clk 0:00:16.5]} 66...
exf5 {[%clk 0:00:11.8]} 67. Qxd5 {[%clk 0:00:13.7]} 67... Qb6+ {[%clk
0:00:12.4]} 68. Kc1 {[%clk 0:00:13.8]} 68... Qd8 {[%clk 0:00:05.8]} 69. Bf3
{[%clk 0:00:13.3]} 69... Rh3 {[%clk 0:00:04.2]} 70. Rg1 {[%clk 0:00:13]} 70...
Qe8 {[%clk 0:00:01]} 71. Rg8 {[%clk 0:00:12.4]} 71... Qxg8 {[%clk 0:00:01]} 72.
Qxg8 {[%clk 0:00:12.3]} 1-0

[Event "Late-Titled-Tuesday-Blitz-May-28-2024"]
[Site "Chess.com"]
[Date "2024.05.28"]
[Round "4"]
[White "JanMur7"]
[Black "agustinv04"]
[Result "0-1"]
[WhiteElo "2288"]
[BlackElo "2515"]
[TimeControl "180+1"]
[EndTime "14:40:11 PDT"]
[Termination "agustinv04 won by checkmate"]

1. c4 {[%clk 0:03:00.9]} 1... e5 {[%clk 0:02:56.6]} 2. Nc3 {[%clk 0:03:01.3]}
2... g6 {[%clk 0:02:55.7]} 3. g3 {[%clk 0:02:58.9]} 3... Bg7 {[%clk 0:02:55.6]}
4. Bg2 {[%clk 0:02:59.4]} 4... Nc6 {[%clk 0:02:55.7]} 5. e3 {[%clk 0:02:59.9]}
5... d6 {[%clk 0:02:54.6]} 6. Nge2 {[%clk 0:03:00.1]} 6... h5 {[%clk 0:02:53.8]}
7. h4 {[%clk 0:02:57.4]} 7... Bg4 {[%clk 0:02:44.1]} 8. f3 {[%clk 0:02:53.3]}
8... Be6 {[%clk 0:02:43.3]} 9. b3 {[%clk 0:02:50.8]} 9... g5 {[%clk 0:02:43.5]}
10. hxg5 {[%clk 0:02:47]} 10... Qxg5 {[%clk 0:02:44.4]} 11. d4 {[%clk
0:02:47.1]} 11... Bd7 {[%clk 0:02:40.6]} 12. d5 {[%clk 0:02:43.5]} 12... Nce7
{[%clk 0:02:39.2]} 13. e4 {[%clk 0:02:43.4]} 13... Qg6 {[%clk 0:02:39]} 14. Be3
{[%clk 0:02:39.2]} 14... f5 {[%clk 0:02:26.7]} 15. Bf2 {[%clk 0:02:36.6]} 15...
Nf6 {[%clk 0:02:24.9]} 16. Qd3 {[%clk 0:02:22.4]} 16... h4 {[%clk 0:02:15.9]}
17. O-O-O {[%clk 0:02:11.3]} 17... O-O-O {[%clk 0:02:09.7]} 18. Bxa7 {[%clk
0:01:48.3]} 18... hxg3 {[%clk 0:01:47.8]} 19. c5 {[%clk 0:01:44]} 19... Rxh1
{[%clk 0:01:44.7]} 20. Rxh1 {[%clk 0:01:41.6]} 20... fxe4 {[%clk 0:01:44.6]} 21.
fxe4 {[%clk 0:01:27.8]} 21... dxc5 {[%clk 0:01:44.9]} 22. Bxc5 {[%clk 0:01:21]}
22... Bf8 {[%clk 0:01:25.9]} 23. Qxg3 {[%clk 0:01:09.5]} 23... Ng4 {[%clk
0:00:54.9]} 24. Rf1 {[%clk 0:00:47.4]} 24... Nf5 {[%clk 0:00:49.5]} 25. exf5
{[%clk 0:00:40.6]} 25... Qg5+ {[%clk 0:00:50]} 26. Kb1 {[%clk 0:00:28.4]} 26...
Bxc5 {[%clk 0:00:49.2]} 27. Ne4 {[%clk 0:00:29]} 27... Bxf5 {[%clk 0:00:48.2]}
28. Rxf5 {[%clk 0:00:15.8]} 28... Qxf5 {[%clk 0:00:46.5]} 29. Kb2 {[%clk
0:00:16.2]} 29... Rg8 {[%clk 0:00:44.1]} 30. Nxc5 {[%clk 0:00:11.3]} 30... b6
{[%clk 0:00:43]} 31. Na4 {[%clk 0:00:06.1]} 31... Nf6 {[%clk 0:00:43.3]} 32. Bh3
{[%clk 0:00:03.7]} 32... Ng4 {[%clk 0:00:38.2]} 33. Bxg4 {[%clk 0:00:02.8]}
33... Rxg4 {[%clk 0:00:37.3]} 34. Qc3 {[%clk 0:00:03.2]} 34... Rg2 {[%clk
0:00:36.7]} 35. Qd2 {[%clk 0:00:03]} 35... Qf2 {[%clk 0:00:35]} 36. Nac3 {[%clk
0:00:03.2]} 36... e4 {[%clk 0:00:34.9]} 37. Qd1 {[%clk 0:00:01.8]} 37... Qf6
{[%clk 0:00:33.3]} 38. Kc2 {[%clk 0:00:01]} 38... Qe5 {[%clk 0:00:32.8]} 39. Qd2
{[%clk 0:00:01.4]} 39... e3 {[%clk 0:00:33]} 40. Qd3 {[%clk 0:00:01.8]} 40... b5
{[%clk 0:00:32.6]} 41. Nxb5 {[%clk 0:00:01.3]} 41... Qa1 {[%clk 0:00:26.6]} 42.
Nc3 {[%clk 0:00:01.6]} 42... Rh2 {[%clk 0:00:22.6]} 43. Qxe3 {[%clk 0:00:01.7]}
43... Rh1 {[%clk 0:00:23.2]} 44. Qe8+ {[%clk 0:00:01.7]} 44... Kb7 {[%clk
0:00:23.3]} 45. Qb5+ {[%clk 0:00:02]} 45... Ka7 {[%clk 0:00:24.1]} 46. Qa5+
{[%clk 0:00:02.2]} 46... Kb7 {[%clk 0:00:25]} 47. Qb5+ {[%clk 0:00:02.6]} 47...
Kc8 {[%clk 0:00:25.9]} 48. Qd3 {[%clk 0:00:02.6]} 48... Kd8 {[%clk 0:00:26.8]}
49. Qd2 {[%clk 0:00:02.3]} 49... Qf1 {[%clk 0:00:24.9]} 50. d6 {[%clk
0:00:01.9]} 50... Qf5+ {[%clk 0:00:25.8]} 51. Qd3 {[%clk 0:00:02]} 51... Qxd3+
{[%clk 0:00:26.2]} 52. Kxd3 {[%clk 0:00:02.4]} 52... cxd6 {[%clk 0:00:27.1]} 53.
Nd4 {[%clk 0:00:02.8]} 53... Rh3+ {[%clk 0:00:27.6]} 54. Kc4 {[%clk 0:00:02.5]}
54... Kd7 {[%clk 0:00:28.5]} 55. Ne4 {[%clk 0:00:01.9]} 55... Rh2 {[%clk
0:00:29.2]} 56. Nf6+ {[%clk 0:00:01.2]} 56... Kd8 {[%clk 0:00:27]} 57. Ne4
{[%clk 0:00:01]} 57... Rxa2 {[%clk 0:00:27]} 58. Nxd6 {[%clk 0:00:01.2]} 58...
Kd7 {[%clk 0:00:27.7]} 59. N6b5 {[%clk 0:00:01.5]} 59... Ra1 {[%clk 0:00:28.6]}
60. Nc3 {[%clk 0:00:01.8]} 60... Rh1 {[%clk 0:00:27.6]} 61. b4 {[%clk
0:00:02.7]} 61... Kc7 {[%clk 0:00:28.2]} 62. b5 {[%clk 0:00:03.6]} 62... Kb6
{[%clk 0:00:29.1]} 63. Nd5+ {[%clk 0:00:03.5]} 63... Ka5 {[%clk 0:00:29.1]} 64.
Kc5 {[%clk 0:00:03.1]} 64... Rc1+ {[%clk 0:00:29.3]} 65. Kd6 {[%clk 0:00:01.9]}
65... Rd1 {[%clk 0:00:28.6]} 66. Kc5 {[%clk 0:00:01.3]} 66... Rc1+ {[%clk
0:00:28.5]} 67. Kd6 {[%clk 0:00:01.6]} 67... Rh1 {[%clk 0:00:27.4]} 68. Kc5
{[%clk 0:00:01.6]} 68... Ka4 {[%clk 0:00:26.4]} 69. Nc6 {[%clk 0:00:01.8]} 69...
Rc1+ {[%clk 0:00:25.1]} 70. Kb6 {[%clk 0:00:02.1]} 70... Rb1 {[%clk 0:00:25.4]}
71. Nc7 {[%clk 0:00:02.5]} 71... Kb3 {[%clk 0:00:23]} 72. Ka6 {[%clk 0:00:02.8]}
72... Kc4 {[%clk 0:00:23.9]} 73. b6 {[%clk 0:00:02.8]} 73... Kc5 {[%clk
0:00:24.4]} 74. Na8 {[%clk 0:00:01]} 74... Kxc6 {[%clk 0:00:24.1]} 75. Ka7
{[%clk 0:00:01.5]} 75... Rb2 {[%clk 0:00:18.8]} 76. Ka6 {[%clk 0:00:01.3]} 76...
Ra2# {[%clk 0:00:19]} 0-1

[Event "Late-Titled-Tuesday-Blitz-May-28-2024"]
[Site "Chess.com"]
[Date "2024.05.28"]
[Round "4"]
[White "stolencandy13"]
[Black "FuenfgegenWilly"]
[Result "0-1"]
[WhiteElo "2609"]
[BlackElo "2463"]
[TimeControl "180+1"]
[EndTime "14:40:24 PDT"]
[Termination "FuenfgegenWilly won by checkmate"]

1. d4 {[%clk 0:03:00.9]} 1... c5 {[%clk 0:02:54.7]} 2. e3 {[%clk 0:02:57.6]}
2... cxd4 {[%clk 0:02:53.8]} 3. exd4 {[%clk 0:02:58.5]} 3... d5 {[%clk
0:02:54.1]} 4. Nf3 {[%clk 0:02:58.3]} 4... Nc6 {[%clk 0:02:53.9]} 5. Bf4 {[%clk
0:02:58.8]} 5... Bf5 {[%clk 0:02:49.6]} 6. c3 {[%clk 0:02:58.5]} 6... a6 {[%clk
0:02:49.3]} 7. Qb3 {[%clk 0:02:53.3]} 7... Na5 {[%clk 0:02:38.4]} 8. Qd1 {[%clk
0:02:46.1]} 8... e6 {[%clk 0:02:35.2]} 9. Nbd2 {[%clk 0:02:44.6]} 9... h6 {[%clk
0:02:31.3]} 10. Ne5 {[%clk 0:02:40.8]} 10... Ne7 {[%clk 0:01:57.7]} 11. Bd3
{[%clk 0:02:37.4]} 11... Bxd3 {[%clk 0:01:56.2]} 12. Nxd3 {[%clk 0:02:37]} 12...
Ng6 {[%clk 0:01:53.8]} 13. Bg3 {[%clk 0:02:36.4]} 13... Bd6 {[%clk 0:01:49.5]}
14. O-O {[%clk 0:02:36.1]} 14... O-O {[%clk 0:01:45.2]} 15. Ne5 {[%clk
0:02:30.8]} 15... Bxe5 {[%clk 0:01:42.5]} 16. dxe5 {[%clk 0:02:30.6]} 16... b5
{[%clk 0:01:42.9]} 17. Nf3 {[%clk 0:02:25.9]} 17... Rb8 {[%clk 0:01:37.7]} 18.
Nd4 {[%clk 0:02:21.6]} 18... b4 {[%clk 0:01:34.8]} 19. Qd2 {[%clk 0:02:11]}
19... Nc4 {[%clk 0:01:34.3]} 20. Qc2 {[%clk 0:02:07.8]} 20... bxc3 {[%clk
0:01:33]} 21. Qxc3 {[%clk 0:02:05.6]} 21... Rxb2 {[%clk 0:01:29.2]} 22. a4
{[%clk 0:01:54.7]} 22... Qb6 {[%clk 0:01:24.8]} 23. h4 {[%clk 0:01:44.5]} 23...
Nd2 {[%clk 0:01:17.7]} 24. Rfd1 {[%clk 0:01:36.6]} 24... Ne4 {[%clk 0:01:17.8]}
25. Qe3 {[%clk 0:01:33]} 25... Rc8 {[%clk 0:01:01.8]} 26. h5 {[%clk 0:01:32.1]}
26... Ne7 {[%clk 0:01:00.4]} 27. Bh4 {[%clk 0:01:30.4]} 27... Nc6 {[%clk
0:00:51]} 28. Nxc6 {[%clk 0:01:24.4]} 28... Rxc6 {[%clk 0:00:51.9]} 29. Qf4
{[%clk 0:01:07.1]} 29... Rcc2 {[%clk 0:00:48.8]} 30. Rf1 {[%clk 0:01:01.2]}
30... Qd4 {[%clk 0:00:37.9]} 31. a5 {[%clk 0:00:58.1]} 31... Qd2 {[%clk
0:00:34.6]} 32. Qf3 {[%clk 0:00:50.6]} 32... Nc3 {[%clk 0:00:29.6]} 33. Kh2
{[%clk 0:00:36.5]} 33... Qd4 {[%clk 0:00:26.6]} 34. Bg3 {[%clk 0:00:25.7]} 34...
Qe4 {[%clk 0:00:26.7]} 35. Qxe4 {[%clk 0:00:24.4]} 35... Nxe4 {[%clk 0:00:27.6]}
36. Ra4 {[%clk 0:00:21]} 36... Nxf2 {[%clk 0:00:22.3]} 37. Bxf2 {[%clk
0:00:20.3]} 37... Rxf2 {[%clk 0:00:22.8]} 38. Rg1 {[%clk 0:00:19]} 38... Rfc2
{[%clk 0:00:21.8]} 39. Rf4 {[%clk 0:00:18.4]} 39... Rc4 {[%clk 0:00:20.6]} 40.
Rf3 {[%clk 0:00:18.3]} 40... Re4 {[%clk 0:00:19.8]} 41. Rgf1 {[%clk 0:00:17.3]}
41... Rb7 {[%clk 0:00:19.9]} 42. Rc3 {[%clk 0:00:16.3]} 42... Rxe5 {[%clk
0:00:17.7]} 43. Rc6 {[%clk 0:00:16.9]} 43... d4 {[%clk 0:00:17.8]} 44. Rxa6
{[%clk 0:00:15.9]} 44... Rxh5+ {[%clk 0:00:17.9]} 45. Kg1 {[%clk 0:00:14.6]}
45... Rd5 {[%clk 0:00:16.6]} 46. Ra8+ {[%clk 0:00:14.1]} 46... Kh7 {[%clk
0:00:16.7]} 47. a6 {[%clk 0:00:14.6]} 47... Rbd7 {[%clk 0:00:08.4]} 48. Rb1
{[%clk 0:00:13.1]} 48... Ra5 {[%clk 0:00:08.4]} 49. Rb7 {[%clk 0:00:12.7]} 49...
Rd6 {[%clk 0:00:06.7]} 50. Rf8 {[%clk 0:00:10.9]} 50... Raxa6 {[%clk 0:00:06]}
51. Rfxf7 {[%clk 0:00:11.2]} 51... Kg6 {[%clk 0:00:06.4]} 52. Rxg7+ {[%clk
0:00:11.4]} 52... Kf5 {[%clk 0:00:06.9]} 53. Rbf7+ {[%clk 0:00:11.2]} 53... Ke4
{[%clk 0:00:07.3]} 54. Kf2 {[%clk 0:00:10.6]} 54... Kd3 {[%clk 0:00:06.8]} 55.
Rh7 {[%clk 0:00:10]} 55... e5 {[%clk 0:00:04.8]} 56. Re7 {[%clk 0:00:10]} 56...
e4 {[%clk 0:00:05]} 57. Rb7 {[%clk 0:00:07.3]} 57... e3+ {[%clk 0:00:05.4]} 58.
Kf3 {[%clk 0:00:07.8]} 58... Rf6+ {[%clk 0:00:05.2]} 59. Kg3 {[%clk 0:00:07.1]}
59... Rg6+ {[%clk 0:00:04.7]} 60. Kf4 {[%clk 0:00:06.3]} 60... Raf6+ {[%clk
0:00:04.3]} 61. Ke5 {[%clk 0:00:06.8]} 61... Re6+ {[%clk 0:00:03.9]} 62. Kd5
{[%clk 0:00:07.2]} 62... Rd6+ {[%clk 0:00:04]} 63. Ke5 {[%clk 0:00:07.6]} 63...
Rge6+ {[%clk 0:00:04]} 64. Kf4 {[%clk 0:00:08.1]} 64... Ke2 {[%clk 0:00:02.9]}
65. Rb2+ {[%clk 0:00:06.9]} 65... Kd1 {[%clk 0:00:03.5]} 66. Ra7 {[%clk
0:00:05.8]} 66... Rc6 {[%clk 0:00:03.8]} 67. Ra1+ {[%clk 0:00:05.6]} 67... Rc1
{[%clk 0:00:03.9]} 68. Raa2 {[%clk 0:00:06.5]} 68... d3 {[%clk 0:00:03.7]} 69.
Kf3 {[%clk 0:00:05.8]} 69... e2 {[%clk 0:00:03.7]} 70. Rd2+ {[%clk 0:00:04.2]}
70... Ke1 {[%clk 0:00:04.2]} 71. g3 {[%clk 0:00:04.6]} 71... Rf6+ {[%clk
0:00:04.4]} 72. Ke3 {[%clk 0:00:05]} 72... Kf1 {[%clk 0:00:04.1]} 73. Rxe2
{[%clk 0:00:03.5]} 73... dxe2 {[%clk 0:00:04.3]} 74. Rxe2 {[%clk 0:00:04.2]}
74... Rc3+ {[%clk 0:00:04.2]} 75. Kd2 {[%clk 0:00:04]} 75... Rxg3 {[%clk
0:00:03.5]} 76. Re5 {[%clk 0:00:03.8]} 76... Rf2+ {[%clk 0:00:03.4]} 77. Kd1
{[%clk 0:00:03.9]} 77... Ra3 {[%clk 0:00:03.3]} 78. Rc5 {[%clk 0:00:03.3]} 78...
Ra1+ {[%clk 0:00:03.5]} 79. Rc1 {[%clk 0:00:04.2]} 79... Rxc1+ {[%clk
0:00:03.8]} 80. Kxc1 {[%clk 0:00:04.8]} 80... Kg2 {[%clk 0:00:04.3]} 81. Kd1
{[%clk 0:00:05.7]} 81... Kf3 {[%clk 0:00:05.2]} 82. Ke1 {[%clk 0:00:06.2]} 82...
Ke3 {[%clk 0:00:06.1]} 83. Kd1 {[%clk 0:00:07]} 83... Kd3 {[%clk 0:00:06.4]} 84.
Ke1 {[%clk 0:00:07.9]} 84... Ra2 {[%clk 0:00:06.4]} 85. Kf1 {[%clk 0:00:08.3]}
85... Ke3 {[%clk 0:00:06.8]} 86. Kg1 {[%clk 0:00:08.8]} 86... Kf3 {[%clk
0:00:07.2]} 87. Kf1 {[%clk 0:00:09.7]} 87... Ra1# {[%clk 0:00:07.3]} 0-1

[Event "Late-Titled-Tuesday-Blitz-May-28-2024"]
[Site "Chess.com"]
[Date "2024.05.28"]
[Round "4"]
[White "MyDream003"]
[Black "Maus7"]
[Result "0-1"]
[WhiteElo "2806"]
[BlackElo "2573"]
[TimeControl "180+1"]
[EndTime "14:40:32 PDT"]
[Termination "Maus7 won on time"]

1. e4 {[%clk 0:03:00.9]} 1... c5 {[%clk 0:02:59.3]} 2. Nf3 {[%clk 0:03:01.1]}
2... d6 {[%clk 0:02:58.6]} 3. d4 {[%clk 0:03:01.3]} 3... cxd4 {[%clk 0:02:58.4]}
4. Nxd4 {[%clk 0:03:02.1]} 4... Nf6 {[%clk 0:02:58.6]} 5. Nc3 {[%clk 0:03:02.4]}
5... a6 {[%clk 0:02:59.1]} 6. f3 {[%clk 0:03:02]} 6... Qb6 {[%clk 0:02:56.6]} 7.
Nb3 {[%clk 0:03:01.5]} 7... e6 {[%clk 0:02:56.5]} 8. g4 {[%clk 0:03:01.3]} 8...
Be7 {[%clk 0:02:49.3]} 9. Qe2 {[%clk 0:03:01.6]} 9... Qc7 {[%clk 0:02:47.8]} 10.
g5 {[%clk 0:03:01]} 10... Nfd7 {[%clk 0:02:47.5]} 11. h4 {[%clk 0:03:01.4]}
11... b5 {[%clk 0:02:43.9]} 12. a3 {[%clk 0:03:01.7]} 12... Nb6 {[%clk
0:02:24.5]} 13. Qf2 {[%clk 0:02:48.9]} 13... N8d7 {[%clk 0:02:17]} 14. Be3
{[%clk 0:02:46]} 14... Rb8 {[%clk 0:02:03.3]} 15. h5 {[%clk 0:02:38.4]} 15...
Ne5 {[%clk 0:01:42.6]} 16. Nd2 {[%clk 0:02:32.7]} 16... O-O {[%clk 0:01:03.7]}
17. O-O-O {[%clk 0:02:22.6]} 17... Na4 {[%clk 0:00:53]} 18. Nxa4 {[%clk
0:02:11.2]} 18... bxa4 {[%clk 0:00:53.9]} 19. Bd4 {[%clk 0:02:11.8]} 19... Nc6
{[%clk 0:00:45.6]} 20. Bc3 {[%clk 0:02:11.9]} 20... d5 {[%clk 0:00:41.3]} 21.
exd5 {[%clk 0:01:48.6]} 21... exd5 {[%clk 0:00:42.2]} 22. Bd3 {[%clk 0:01:42.3]}
22... d4 {[%clk 0:00:39.1]} 23. Bxd4 {[%clk 0:01:42.2]} 23... Nxd4 {[%clk
0:00:37]} 24. Qxd4 {[%clk 0:01:43.1]} 24... Bxg5 {[%clk 0:00:18.1]} 25. Rhg1
{[%clk 0:01:42.6]} 25... h6 {[%clk 0:00:16.8]} 26. Kb1 {[%clk 0:01:33.3]} 26...
Qb6 {[%clk 0:00:15.7]} 27. Qxb6 {[%clk 0:01:25.7]} 27... Rxb6 {[%clk 0:00:16.6]}
28. Ne4 {[%clk 0:01:26.2]} 28... Be7 {[%clk 0:00:17.2]} 29. Ka1 {[%clk
0:01:22.2]} 29... Be6 {[%clk 0:00:17.2]} 30. Nc3 {[%clk 0:01:21.4]} 30... Rfb8
{[%clk 0:00:16.5]} 31. Nxa4 {[%clk 0:01:21.6]} 31... Rc6 {[%clk 0:00:16.8]} 32.
f4 {[%clk 0:00:53]} 32... Bf6 {[%clk 0:00:16]} 33. f5 {[%clk 0:00:53.4]} 33...
Bc4 {[%clk 0:00:13.9]} 34. Be4 {[%clk 0:00:52.6]} 34... Rc7 {[%clk 0:00:13.7]}
35. Rg3 {[%clk 0:00:43.3]} 35... Be2 {[%clk 0:00:12]} 36. Rh1 {[%clk 0:00:41.5]}
36... Kf8 {[%clk 0:00:10.5]} 37. Nc3 {[%clk 0:00:40.2]} 37... Bc4 {[%clk
0:00:10.1]} 38. Rd1 {[%clk 0:00:34.9]} 38... a5 {[%clk 0:00:10.3]} 39. Bd5
{[%clk 0:00:30]} 39... Be2 {[%clk 0:00:09.6]} 40. Rh1 {[%clk 0:00:14.4]} 40...
Bc4 {[%clk 0:00:08]} 41. Be4 {[%clk 0:00:07.7]} 41... Rc5 {[%clk 0:00:07.9]} 42.
Rd1 {[%clk 0:00:07.7]} 42... Ba6 {[%clk 0:00:07.8]} 43. Rd2 {[%clk 0:00:07.9]}
43... Bc8 {[%clk 0:00:07.9]} 44. Rf3 {[%clk 0:00:07.9]} 44... Bb7 {[%clk
0:00:05.6]} 45. Bxb7 {[%clk 0:00:07.4]} 45... Rxb7 {[%clk 0:00:06.5]} 46. Ka2
{[%clk 0:00:07.3]} 46... Rc4 {[%clk 0:00:05.8]} 47. Rd1 {[%clk 0:00:06.6]} 47...
Rc8 {[%clk 0:00:05.8]} 48. Rb1 {[%clk 0:00:06.7]} 48... Rcb8 {[%clk 0:00:06]}
49. Na4 {[%clk 0:00:07]} 49... Rb5 {[%clk 0:00:06.1]} 50. c3 {[%clk 0:00:07.4]}
50... Rd5 {[%clk 0:00:06.1]} 51. Re1 {[%clk 0:00:07.3]} 51... Rd2 {[%clk
0:00:06.1]} 52. Re4 {[%clk 0:00:07.5]} 52... Rh2 {[%clk 0:00:06]} 53. Rc4 {[%clk
0:00:07]} 53... Rxh5 {[%clk 0:00:06.3]} 54. Rc5 {[%clk 0:00:07.7]} 54... Rh2
{[%clk 0:00:06.3]} 55. Rxa5 {[%clk 0:00:07.9]} 55... h5 {[%clk 0:00:06.8]} 56.
Rd5 {[%clk 0:00:04.5]} 56... h4 {[%clk 0:00:07.2]} 57. Rdd3 {[%clk 0:00:05]}
57... Rg2 {[%clk 0:00:07.3]} 58. Rh3 {[%clk 0:00:05]} 58... Rf2 {[%clk 0:00:07]}
59. Rd5 {[%clk 0:00:04.5]} 59... Kg8 {[%clk 0:00:06.9]} 60. Rc5 {[%clk
0:00:04.8]} 60... Kh7 {[%clk 0:00:07.1]} 61. Rd5 {[%clk 0:00:05.2]} 61... Kh6
{[%clk 0:00:07.5]} 62. Rd4 {[%clk 0:00:05.8]} 62... Kh5 {[%clk 0:00:07.8]} 63.
Kb1 {[%clk 0:00:06.2]} 63... Bxd4 {[%clk 0:00:07.9]} 64. cxd4 {[%clk 0:00:06.2]}
64... Rf4 {[%clk 0:00:08.2]} 65. Kc2 {[%clk 0:00:05.6]} 65... Rxd4 {[%clk
0:00:08.2]} 66. Nc3 {[%clk 0:00:05.4]} 66... Kg4 {[%clk 0:00:08.7]} 67. Rh1
{[%clk 0:00:06.3]} 67... h3 {[%clk 0:00:09.2]} 68. Rg1+ {[%clk 0:00:06]} 68...
Kf3 {[%clk 0:00:08.5]} 69. Rxg7 {[%clk 0:00:06.1]} 69... Rh4 {[%clk 0:00:08.7]}
70. Rg1 {[%clk 0:00:05.6]} 70... h2 {[%clk 0:00:09.2]} 71. Rd1 {[%clk
0:00:05.4]} 71... h1=Q {[%clk 0:00:08.5]} 72. Rxh1 {[%clk 0:00:05.6]} 72... Rxh1
{[%clk 0:00:09.4]} 73. a4 {[%clk 0:00:06.2]} 73... Rh2+ {[%clk 0:00:09.4]} 74.
Kd3 {[%clk 0:00:06.4]} 74... Rhxb2 {[%clk 0:00:10]} 75. Kc4 {[%clk 0:00:07.3]}
75... Rc2 {[%clk 0:00:10.2]} 76. Kd3 {[%clk 0:00:07.5]} 76... Rxc3+ {[%clk
0:00:10.8]} 77. Kd4 {[%clk 0:00:07.7]} 77... Ra8 {[%clk 0:00:11.7]} 78. Kxc3
{[%clk 0:00:08.6]} 78... Kf4 {[%clk 0:00:12]} 79. Kd4 {[%clk 0:00:09.5]} 79...
Kxf5 {[%clk 0:00:12.6]} 80. Kd5 {[%clk 0:00:10.4]} 80... Kg4 {[%clk 0:00:13]}
81. Kd6 {[%clk 0:00:11.3]} 81... f5 {[%clk 0:00:13.6]} 82. Ke7 {[%clk
0:00:12.2]} 82... f4 {[%clk 0:00:14.3]} 83. Kf7 {[%clk 0:00:13.1]} 83... f3
{[%clk 0:00:14.9]} 0-1